[Event "Titled Tuesday Blitz May 2 Early 2023"]
[White "Sammed Jaykumar, Shete"]
[Black "Ter-Sahakyan, Samvel"]
[WhiteFideId "5073421"]
[BlackFideId "13302531"]
[WhiteElo "2278"]
[BlackElo "2566"]
[Result "0-1"]
[Round "08"]
[TimeControl "180+2"]
[Date "2023.05.02"]
[WhiteClock "0:00:01"]
[BlackClock "0:00:06"]

1. e4 {[%clk 0:02:59]}  c5 {[%clk 0:03:00]} 2. Nf3 {[%clk 0:02:59]}  e6 {[%clk 0:03:00]} 3. d4 {[%clk 0:02:57]}  cxd4 {[%clk 0:03:01]} 4. Nxd4 {[%clk 0:02:58]}  Nf6 {[%clk 0:03:01]} 5. Nc3 {[%clk 0:02:59]}  Nc6 {[%clk 0:03:01]} 6. f4 {[%clk 0:02:56]}  Bb4 {[%clk 0:02:58]} 7. Nxc6 {[%clk 0:02:56]}  bxc6 {[%clk 0:02:58]} 8. Bd3 {[%clk 0:02:57]}  d5 {[%clk 0:02:56]} 9. e5 {[%clk 0:02:58]}  Nd7 {[%clk 0:02:53]} 10. a3 {[%clk 0:02:55]}  Bc5 {[%clk 0:02:35]} 11. Na4 {[%clk 0:02:48]}  Qa5+ {[%clk 0:02:25]} 12. c3 {[%clk 0:02:47]}  Be7 {[%clk 0:02:25]} 13. b4 {[%clk 0:02:45]}  Qc7 {[%clk 0:02:25]} 14. Be3 {[%clk 0:02:37]}  c5 {[%clk 0:02:21]} 15. O-O {[%clk 0:02:22]}  g6 {[%clk 0:02:18]} 16. c4 {[%clk 0:01:56]}  d4 {[%clk 0:02:06]} 17. Bd2 {[%clk 0:01:55]}  O-O {[%clk 0:02:06]} 18. Nb2 {[%clk 0:01:39]}  Bb7 {[%clk 0:02:03]} 19. b5 {[%clk 0:01:39]}  f6 {[%clk 0:01:52]} 20. exf6 {[%clk 0:01:31]}  Bxf6 {[%clk 0:01:53]} 21. Qg4 {[%clk 0:01:31]}  Rae8 {[%clk 0:01:52]} 22. Rae1 {[%clk 0:01:26]}  Qd6 {[%clk 0:01:51]} 23. Nd1 {[%clk 0:01:12]}  Bg7 {[%clk 0:01:50]} 24. Nf2 {[%clk 0:01:09]}  e5 {[%clk 0:01:41]} 25. f5 {[%clk 0:00:43]}  Nf6 {[%clk 0:01:25]} 26. Qg3 {[%clk 0:00:43]}  Nh5 {[%clk 0:01:18]} 27. Qh3 {[%clk 0:00:43]}  Nf6 {[%clk 0:01:05]} 28. fxg6 {[%clk 0:00:39]}  e4 {[%clk 0:01:01]} 29. Nxe4 {[%clk 0:00:29]}  Bxe4 {[%clk 0:00:57]} 30. Bxe4 {[%clk 0:00:29]}  h5 {[%clk 0:00:56]} 31. Bd3 {[%clk 0:00:25]}  Kh8 {[%clk 0:00:26]} 32. a4 {[%clk 0:00:24]}  Kg8 {[%clk 0:00:23]} 33. a5 {[%clk 0:00:24]}  Qd8 {[%clk 0:00:23]} 34. Re6 {[%clk 0:00:20]}  Qb8 {[%clk 0:00:18]} 35. Rfe1 {[%clk 0:00:16]}  Rxe6 {[%clk 0:00:13]} 36. Qxe6+ {[%clk 0:00:15]}  Kh8 {[%clk 0:00:14]} 37. Qh3 {[%clk 0:00:15]}  Kg8 {[%clk 0:00:13]} 38. Bg5 {[%clk 0:00:12]}  Qd6 {[%clk 0:00:09]} 39. Qe6+ {[%clk 0:00:10]}  Qxe6 {[%clk 0:00:09]} 40. Rxe6 {[%clk 0:00:11]}  Ng4 {[%clk 0:00:08]} 41. b6 {[%clk 0:00:09]}  axb6 {[%clk 0:00:08]} 42. axb6 {[%clk 0:00:10]}  Ne5 {[%clk 0:00:09]} 43. Bf1 {[%clk 0:00:09]}  d3 {[%clk 0:00:09]} 44. b7 {[%clk 0:00:06]}  Nc6 {[%clk 0:00:05]} 45. Be3 {[%clk 0:00:03]}  Nd4 {[%clk 0:00:04]} 46. Rd6 {[%clk 0:00:01]}  Ne2+ {[%clk 0:00:05]} 47. Bxe2 {[%clk 0:00:01]}  dxe2 {[%clk 0:00:06]} 0-1


[Site "https://www.chess.com"]

[Event "Titled Tuesday Blitz May 2 Early 2023"]
[White "Rakotomaharo, Fy Antenaina"]
[Black "Henriquez Villagra, Cristobal"]
[WhiteFideId "13100050"]
[BlackFideId "3409350"]
[WhiteElo "2427"]
[BlackElo "2542"]
[Result "0-1"]
[Round "08"]
[TimeControl "180+2"]
[Date "2023.05.02"]
[WhiteClock "0:00:04"]
[BlackClock "0:00:17"]

1. d4 {[%clk 0:03:00]}  d5 {[%clk 0:02:59]} 2. Nf3 {[%clk 0:03:01]}  e6 {[%clk 0:03:00]} 3. e3 {[%clk 0:02:55]}  c6 {[%clk 0:02:59]} 4. c4 {[%clk 0:02:54]}  Nd7 {[%clk 0:02:59]} 5. Bd3 {[%clk 0:02:55]}  f5 {[%clk 0:02:52]} 6. cxd5 {[%clk 0:02:42]}  cxd5 {[%clk 0:02:51]} 7. Nc3 {[%clk 0:02:42]}  Ngf6 {[%clk 0:02:51]} 8. O-O {[%clk 0:02:39]}  Bd6 {[%clk 0:02:51]} 9. Bd2 {[%clk 0:02:33]}  a6 {[%clk 0:02:46]} 10. Rc1 {[%clk 0:02:33]}  O-O {[%clk 0:02:37]} 11. a3 {[%clk 0:02:33]}  Ne4 {[%clk 0:02:30]} 12. Ne2 {[%clk 0:02:33]}  Nxd2 {[%clk 0:02:16]} 13. Qxd2 {[%clk 0:02:32]}  b6 {[%clk 0:02:16]} 14. Nf4 {[%clk 0:02:22]}  Qe7 {[%clk 0:02:14]} 15. Be2 {[%clk 0:02:04]}  Bb7 {[%clk 0:02:00]} 16. h4 {[%clk 0:02:04]}  Rfc8 {[%clk 0:01:57]} 17. Rxc8+ {[%clk 0:01:54]}  Rxc8 {[%clk 0:01:57]} 18. Rc1 {[%clk 0:01:55]}  Rxc1+ {[%clk 0:01:26]} 19. Qxc1 {[%clk 0:01:54]}  b5 {[%clk 0:01:24]} 20. b4 {[%clk 0:01:40]}  h6 {[%clk 0:01:17]} 21. Nd3 {[%clk 0:01:24]}  Nb6 {[%clk 0:01:17]} 22. Nc5 {[%clk 0:01:18]}  Bc8 {[%clk 0:01:14]} 23. h5 {[%clk 0:01:14]}  Nc4 {[%clk 0:01:13]} 24. Bxc4 {[%clk 0:01:09]}  dxc4 {[%clk 0:01:04]} 25. Ne5 {[%clk 0:01:07]}  Bb7 {[%clk 0:00:55]} 26. Ng6 {[%clk 0:00:52]}  Qf7 {[%clk 0:00:54]} 27. Ne5 {[%clk 0:00:46]}  Bxe5 {[%clk 0:00:47]} 28. dxe5 {[%clk 0:00:47]}  Bd5 {[%clk 0:00:47]} 29. Qd1 {[%clk 0:00:38]}  a5 {[%clk 0:00:44]} 30. Qd2 {[%clk 0:00:09]}  axb4 {[%clk 0:00:42]} 31. Qxb4 {[%clk 0:00:10]}  Qxh5 {[%clk 0:00:37]} 32. Qxb5 {[%clk 0:00:10]}  Qg6 {[%clk 0:00:32]} 33. e4 {[%clk 0:00:08]}  fxe4 {[%clk 0:00:28]} 34. Qb8+ {[%clk 0:00:06]}  Kh7 {[%clk 0:00:21]} 35. Qb1 {[%clk 0:00:04]}  h5 {[%clk 0:00:17]} 0-1


[Site "https://www.chess.com"]

[Event "Titled Tuesday Blitz May 2 Early 2023"]
[White "Firouzja, Alireza"]
[Black "Ibarra Jerez, Jose Carlos"]
[WhiteFideId "12573981"]
[BlackFideId "2226332"]
[WhiteElo "2904"]
[BlackElo "2638"]
[Result "1-0"]
[Round "08"]
[TimeControl "180+2"]
[Date "2023.05.02"]
[WhiteClock "0:02:02"]
[BlackClock "0:00:09"]

1. d4 {[%clk 0:03:00]}  Nf6 {[%clk 0:02:59]} 2. Bg5 {[%clk 0:03:01]}  d5 {[%clk 0:02:58]} 3. e3 {[%clk 0:03:01]}  c5 {[%clk 0:02:58]} 4. Bxf6 {[%clk 0:03:02]}  gxf6 {[%clk 0:02:58]} 5. dxc5 {[%clk 0:03:02]}  e6 {[%clk 0:02:58]} 6. c4 {[%clk 0:03:02]}  dxc4 {[%clk 0:02:57]} 7. Nd2 {[%clk 0:03:02]}  c3 {[%clk 0:02:57]} 8. bxc3 {[%clk 0:03:02]}  Bxc5 {[%clk 0:02:58]} 9. Ngf3 {[%clk 0:03:02]}  Nc6 {[%clk 0:02:57]} 10. Be2 {[%clk 0:03:02]}  f5 {[%clk 0:02:56]} 11. O-O {[%clk 0:03:03]}  O-O {[%clk 0:02:56]} 12. Qc2 {[%clk 0:03:03]}  Qf6 {[%clk 0:02:52]} 13. Nb3 {[%clk 0:03:01]}  Bb6 {[%clk 0:02:34]} 14. Rad1 {[%clk 0:03:00]}  e5 {[%clk 0:02:30]} 15. c4 {[%clk 0:02:54]}  e4 {[%clk 0:02:23]} 16. Nfd4 {[%clk 0:02:54]}  Qh6 {[%clk 0:02:10]} 17. Nb5 {[%clk 0:02:47]}  Be6 {[%clk 0:02:05]} 18. c5 {[%clk 0:02:42]}  Bd8 {[%clk 0:02:01]} 19. N3d4 {[%clk 0:02:28]}  Bf6 {[%clk 0:01:38]} 20. Nxe6 {[%clk 0:02:19]}  fxe6 {[%clk 0:01:38]} 21. g3 {[%clk 0:02:19]}  Ne5 {[%clk 0:01:25]} 22. Nd4 {[%clk 0:02:17]}  Be7 {[%clk 0:01:18]} 23. Qb3 {[%clk 0:02:16]}  Kh8 {[%clk 0:01:02]} 24. Nxe6 {[%clk 0:02:13]}  Rf6 {[%clk 0:00:23]} 25. Qxb7 {[%clk 0:02:10]}  Re8 {[%clk 0:00:18]} 26. Nf4 {[%clk 0:02:04]}  Bxc5 {[%clk 0:00:16]} 27. Rd5 {[%clk 0:02:05]}  Bb6 {[%clk 0:00:16]} 28. Rxe5 {[%clk 0:02:03]}  Rxe5 {[%clk 0:00:09]} 29. Qb8+ {[%clk 0:02:02]} 1-0


[Site "https://www.chess.com"]

[Event "Titled Tuesday Blitz May 2 Early 2023"]
[White "Kramnik, Vladimir"]
[Black "Caruana, Fabiano"]
[WhiteFideId "4101588"]
[BlackFideId "2020009"]
[WhiteElo "2712"]
[BlackElo "2837"]
[Result "0-1"]
[Round "08"]
[TimeControl "180+2"]
[Date "2023.05.02"]
[WhiteClock "0:00:01"]
[BlackClock "0:00:26"]

1. Nf3 {[%clk 0:03:00]}  Nf6 {[%clk 0:02:59]} 2. g3 {[%clk 0:02:59]}  g5 {[%clk 0:02:59]} 3. d4 {[%clk 0:02:54]}  h6 {[%clk 0:02:58]} 4. Bg2 {[%clk 0:02:53]}  Bg7 {[%clk 0:02:57]} 5. c4 {[%clk 0:02:53]}  d6 {[%clk 0:02:57]} 6. Nc3 {[%clk 0:02:53]}  O-O {[%clk 0:02:53]} 7. O-O {[%clk 0:02:51]}  Bf5 {[%clk 0:02:49]} 8. h4 {[%clk 0:02:45]}  g4 {[%clk 0:02:48]} 9. Nd2 {[%clk 0:02:39]}  Nc6 {[%clk 0:02:45]} 10. Nb3 {[%clk 0:02:34]}  Rb8 {[%clk 0:02:35]} 11. Be3 {[%clk 0:02:33]}  a6 {[%clk 0:02:32]} 12. Rc1 {[%clk 0:02:23]}  e5 {[%clk 0:02:29]} 13. Qd2 {[%clk 0:02:21]}  Kh7 {[%clk 0:02:26]} 14. Rfd1 {[%clk 0:02:20]}  Re8 {[%clk 0:02:23]} 15. c5 {[%clk 0:02:03]}  dxc5 {[%clk 0:02:07]} 16. dxe5 {[%clk 0:01:59]}  Qxd2 {[%clk 0:02:07]} 17. Bxd2 {[%clk 0:01:54]}  Nxe5 {[%clk 0:02:06]} 18. Nxc5 {[%clk 0:01:52]}  Nc4 {[%clk 0:01:58]} 19. b3 {[%clk 0:01:49]}  Nxd2 {[%clk 0:01:55]} 20. Rxd2 {[%clk 0:01:49]}  c6 {[%clk 0:01:54]} 21. e3 {[%clk 0:01:45]}  a5 {[%clk 0:01:46]} 22. Rcd1 {[%clk 0:01:42]}  Bf8 {[%clk 0:01:44]} 23. Nd3 {[%clk 0:01:28]}  Rbd8 {[%clk 0:01:43]} 24. Nf4 {[%clk 0:01:14]}  Rxd2 {[%clk 0:01:42]} 25. Rxd2 {[%clk 0:01:14]}  Bb4 {[%clk 0:01:42]} 26. Nfe2 {[%clk 0:01:15]}  Kg7 {[%clk 0:01:29]} 27. Rd4 {[%clk 0:01:14]}  Re7 {[%clk 0:01:24]} 28. Rf4 {[%clk 0:01:02]}  Bd3 {[%clk 0:01:13]} 29. Rd4 {[%clk 0:01:01]}  Rd7 {[%clk 0:01:12]} 30. Rxd7 {[%clk 0:00:53]}  Nxd7 {[%clk 0:01:13]} 31. Nf4 {[%clk 0:00:46]}  Ne5 {[%clk 0:01:13]} 32. Nxd3 {[%clk 0:00:20]}  Nxd3 {[%clk 0:01:14]} 33. Bf1 {[%clk 0:00:08]}  Nc1 {[%clk 0:01:12]} 34. Ne2 {[%clk 0:00:08]}  Nxa2 {[%clk 0:01:12]} 35. Kg2 {[%clk 0:00:08]}  Bd2 {[%clk 0:00:58]} 36. f3 {[%clk 0:00:06]}  h5 {[%clk 0:00:55]} 37. Kf2 {[%clk 0:00:06]}  Nb4 {[%clk 0:00:52]} 38. Nf4 {[%clk 0:00:06]}  Kh6 {[%clk 0:00:48]} 39. Be2 {[%clk 0:00:06]}  Nc2 {[%clk 0:00:44]} 40. Ng2 {[%clk 0:00:04]}  gxf3 {[%clk 0:00:28]} 41. Bxf3 {[%clk 0:00:03]}  Bc3 {[%clk 0:00:28]} 42. Be2 {[%clk 0:00:01]}  Be5 {[%clk 0:00:27]} 43. Bd1 {[%clk 0:00:01]}  Nb4 {[%clk 0:00:27]} 44. Kf3 {[%clk 0:00:01]}  Nd5 {[%clk 0:00:26]} 0-1


[Site "https://www.chess.com"]

[Event "Titled Tuesday Blitz May 2 Early 2023"]
[White "Vidit, Santosh Gujrathi"]
[Black "Madaminov, Mukhiddin"]
[WhiteFideId "5029465"]
[BlackFideId "14210703"]
[WhiteElo "2651"]
[BlackElo "2511"]
[Result "1-0"]
[Round "08"]
[TimeControl "180+2"]
[Date "2023.05.02"]
[WhiteClock "0:00:10"]
[BlackClock "0:00:02"]

1. e4 {[%clk 0:03:00]}  e5 {[%clk 0:02:59]} 2. Nf3 {[%clk 0:03:00]}  Nf6 {[%clk 0:02:58]} 3. d4 {[%clk 0:02:59]}  Nxe4 {[%clk 0:02:59]} 4. dxe5 {[%clk 0:02:57]}  d5 {[%clk 0:02:59]} 5. Nbd2 {[%clk 0:02:57]}  Qd7 {[%clk 0:02:59]} 6. Bd3 {[%clk 0:02:53]}  Nc5 {[%clk 0:02:59]} 7. Be2 {[%clk 0:02:52]}  Be7 {[%clk 0:02:59]} 8. O-O {[%clk 0:02:52]}  O-O {[%clk 0:02:59]} 9. Re1 {[%clk 0:02:52]}  Ne6 {[%clk 0:02:59]} 10. Bd3 {[%clk 0:02:51]}  c5 {[%clk 0:02:58]} 11. Bf5 {[%clk 0:02:47]}  Rd8 {[%clk 0:02:57]} 12. Nf1 {[%clk 0:02:47]}  Qc7 {[%clk 0:02:56]} 13. Ng3 {[%clk 0:02:40]}  Nc6 {[%clk 0:02:54]} 14. c3 {[%clk 0:02:39]}  d4 {[%clk 0:02:48]} 15. Qc2 {[%clk 0:02:36]}  g6 {[%clk 0:02:47]} 16. Bxe6 {[%clk 0:02:09]}  Bxe6 {[%clk 0:02:45]} 17. Bf4 {[%clk 0:02:02]}  c4 {[%clk 0:02:37]} 18. Ne4 {[%clk 0:01:56]}  Bf5 {[%clk 0:02:29]} 19. Qc1 {[%clk 0:01:55]}  Qb6 {[%clk 0:01:56]} 20. Nf6+ {[%clk 0:01:29]}  Bxf6 {[%clk 0:01:44]} 21. exf6 {[%clk 0:01:30]}  Qc5 {[%clk 0:01:27]} 22. Bg3 {[%clk 0:00:57]}  d3 {[%clk 0:01:20]} 23. Qf4 {[%clk 0:00:43]}  Re8 {[%clk 0:01:14]} 24. h3 {[%clk 0:00:40]}  h5 {[%clk 0:00:56]} 25. Qg5 {[%clk 0:00:32]}  b6 {[%clk 0:00:46]} 26. Re7 {[%clk 0:00:18]}  Rxe7 {[%clk 0:00:39]} 27. Qh6 {[%clk 0:00:18]}  Re1+ {[%clk 0:00:40]} 28. Rxe1 {[%clk 0:00:19]}  Qf8 {[%clk 0:00:41]} 29. Qf4 {[%clk 0:00:19]}  Re8 {[%clk 0:00:40]} 30. Rxe8 {[%clk 0:00:18]}  Qxe8 {[%clk 0:00:40]} 31. Qxc4 {[%clk 0:00:18]}  Be4 {[%clk 0:00:23]} 32. Nd2 {[%clk 0:00:17]}  Bf5 {[%clk 0:00:24]} 33. Qf4 {[%clk 0:00:16]}  Qe6 {[%clk 0:00:21]} 34. Qg5 {[%clk 0:00:14]}  Ne5 {[%clk 0:00:19]} 35. b3 {[%clk 0:00:11]}  Nd7 {[%clk 0:00:19]} 36. Bh4 {[%clk 0:00:11]}  Qe1+ {[%clk 0:00:09]} 37. Kh2 {[%clk 0:00:11]}  Nxf6 {[%clk 0:00:08]} 38. Nf3 {[%clk 0:00:11]}  Qxf2 {[%clk 0:00:02]} 39. Bxf2 {[%clk 0:00:10]}  Ne4 {[%clk 0:00:02]} 40. Qd8+ {[%clk 0:00:10]} 1-0


[Site "https://www.chess.com"]

[Event "Titled Tuesday Blitz May 2 Early 2023"]
[White "Nguyen, Ngoc Truong Son"]
[Black "Bacrot, Etienne"]
[WhiteFideId "12401110"]
[BlackFideId "605506"]
[WhiteElo "2556"]
[BlackElo "2663"]
[Result "1-0"]
[Round "08"]
[TimeControl "180+2"]
[Date "2023.05.02"]
[WhiteClock "0:00:12"]
[BlackClock "0:00:01"]

1. b3 {[%clk 0:02:57]}  e5 {[%clk 0:02:59]} 2. Bb2 {[%clk 0:02:57]}  Nc6 {[%clk 0:02:59]} 3. e3 {[%clk 0:02:57]}  Nf6 {[%clk 0:02:59]} 4. Bb5 {[%clk 0:02:54]}  Bd6 {[%clk 0:02:59]} 5. Nf3 {[%clk 0:02:53]}  e4 {[%clk 0:02:54]} 6. Nd4 {[%clk 0:02:42]}  Nxd4 {[%clk 0:02:41]} 7. Bxd4 {[%clk 0:02:43]}  Qe7 {[%clk 0:02:40]} 8. f3 {[%clk 0:02:26]}  Be5 {[%clk 0:01:46]} 9. Bxe5 {[%clk 0:02:21]}  Qxe5 {[%clk 0:01:45]} 10. Nc3 {[%clk 0:02:21]}  c6 {[%clk 0:01:40]} 11. Be2 {[%clk 0:02:18]}  d5 {[%clk 0:01:40]} 12. O-O {[%clk 0:02:01]}  O-O {[%clk 0:01:36]} 13. Qe1 {[%clk 0:01:58]}  Bf5 {[%clk 0:01:26]} 14. Qg3 {[%clk 0:01:31]}  Qe6 {[%clk 0:00:56]} 15. fxe4 {[%clk 0:01:12]}  Bxe4 {[%clk 0:00:42]} 16. Rac1 {[%clk 0:01:03]}  Rae8 {[%clk 0:00:32]} 17. Rf4 {[%clk 0:00:51]}  Bg6 {[%clk 0:00:32]} 18. Bf3 {[%clk 0:00:45]}  Rd8 {[%clk 0:00:17]} 19. Ne2 {[%clk 0:00:35]}  Rfe8 {[%clk 0:00:14]} 20. h4 {[%clk 0:00:23]}  Qe5 {[%clk 0:00:11]} 21. c3 {[%clk 0:00:22]}  c5 {[%clk 0:00:11]} 22. Qf2 {[%clk 0:00:19]}  Bd3 {[%clk 0:00:10]} 23. Ng3 {[%clk 0:00:18]}  h6 {[%clk 0:00:04]} 24. b4 {[%clk 0:00:15]}  b6 {[%clk 0:00:04]} 25. a4 {[%clk 0:00:15]}  c4 {[%clk 0:00:04]} 26. Rd4 {[%clk 0:00:15]}  Qe6 {[%clk 0:00:03]} 27. Ne2 {[%clk 0:00:14]}  Ne4 {[%clk 0:00:03]} 28. Bxe4 {[%clk 0:00:14]}  Bxe4 {[%clk 0:00:03]} 29. Nf4 {[%clk 0:00:14]}  Qe5 {[%clk 0:00:04]} 30. Rf1 {[%clk 0:00:12]}  Rd6 {[%clk 0:00:04]} 31. Qg3 {[%clk 0:00:12]}  Rf6 {[%clk 0:00:03]} 32. Rf2 {[%clk 0:00:12]}  Kf8 {[%clk 0:00:03]} 33. Ne2 {[%clk 0:00:12]}  Qxg3 {[%clk 0:00:03]} 34. Nxg3 {[%clk 0:00:13]}  Rxf2 {[%clk 0:00:02]} 35. Kxf2 {[%clk 0:00:13]}  Re5 {[%clk 0:00:01]} 36. Nxe4 {[%clk 0:00:14]}  Rxe4 {[%clk 0:00:01]} 37. Rxd5 {[%clk 0:00:14]}  Rxh4 {[%clk 0:00:01]} 38. Rd7 {[%clk 0:00:14]}  a5 {[%clk 0:00:01]} 39. Rb7 {[%clk 0:00:12]}  axb4 {[%clk 0:00:01]} 40. cxb4 {[%clk 0:00:12]}  Rh5 {[%clk 0:00:01]} 41. Rxb6 {[%clk 0:00:12]} 1-0


[Site "https://www.chess.com"]

[Event "Titled Tuesday Blitz May 2 Early 2023"]
[White "Lamaze, Simon"]
[Black "Martinez Alcantara, Jose Eduardo"]
[WhiteFideId "36069264"]
[BlackFideId "3805662"]
[WhiteElo "2272"]
[BlackElo "2711"]
[Result "0-1"]
[Round "08"]
[TimeControl "180+2"]
[Date "2023.05.02"]
[WhiteClock "0:00:15"]
[BlackClock "0:00:29"]

1. e4 {[%clk 0:03:00]}  c5 {[%clk 0:03:00]} 2. Nf3 {[%clk 0:02:55]}  d6 {[%clk 0:03:00]} 3. d4 {[%clk 0:02:56]}  cxd4 {[%clk 0:03:00]} 4. Nxd4 {[%clk 0:02:56]}  a6 {[%clk 0:03:01]} 5. Nc3 {[%clk 0:02:56]}  e6 {[%clk 0:03:01]} 6. Bd2 {[%clk 0:02:54]}  b5 {[%clk 0:03:01]} 7. g4 {[%clk 0:02:46]}  Bb7 {[%clk 0:03:01]} 8. Bg2 {[%clk 0:02:46]}  h6 {[%clk 0:02:59]} 9. a3 {[%clk 0:02:45]}  Nf6 {[%clk 0:02:59]} 10. h4 {[%clk 0:02:40]}  d5 {[%clk 0:02:48]} 11. e5 {[%clk 0:02:35]}  Ne4 {[%clk 0:02:41]} 12. Nxe4 {[%clk 0:02:28]}  dxe4 {[%clk 0:02:42]} 13. Be3 {[%clk 0:02:28]}  Nd7 {[%clk 0:02:40]} 14. f4 {[%clk 0:02:11]}  exf3 {[%clk 0:02:14]} 15. Bxf3 {[%clk 0:02:11]}  Qc7 {[%clk 0:02:13]} 16. Bxb7 {[%clk 0:02:08]}  Qxb7 {[%clk 0:02:14]} 17. Qf3 {[%clk 0:02:09]}  Qxf3 {[%clk 0:02:12]} 18. Nxf3 {[%clk 0:02:10]}  Bc5 {[%clk 0:02:11]} 19. Bf4 {[%clk 0:02:05]}  Nb6 {[%clk 0:02:10]} 20. Ke2 {[%clk 0:01:58]}  Rc8 {[%clk 0:02:05]} 21. Rhd1 {[%clk 0:01:55]}  O-O {[%clk 0:02:02]} 22. h5 {[%clk 0:01:50]}  Nd5 {[%clk 0:02:00]} 23. Bd2 {[%clk 0:01:47]}  Bb6 {[%clk 0:02:01]} 24. g5 {[%clk 0:01:32]}  hxg5 {[%clk 0:01:49]} 25. Nxg5 {[%clk 0:01:33]}  Rxc2 {[%clk 0:01:47]} 26. Ne4 {[%clk 0:01:33]}  Rxb2 {[%clk 0:01:40]} 27. h6 {[%clk 0:01:30]}  f5 {[%clk 0:01:09]} 28. exf6 {[%clk 0:01:27]}  gxf6 {[%clk 0:01:08]} 29. Rac1 {[%clk 0:01:22]}  Be3 {[%clk 0:00:45]} 30. Rc6 {[%clk 0:01:05]}  a5 {[%clk 0:00:44]} 31. Kd3 {[%clk 0:00:39]}  f5 {[%clk 0:00:35]} 32. Nc5 {[%clk 0:00:29]}  Bxc5 {[%clk 0:00:32]} 33. Rxc5 {[%clk 0:00:28]}  Rd8 {[%clk 0:00:32]} 34. Rg1+ {[%clk 0:00:20]}  Kh8 {[%clk 0:00:30]} 35. Kd4 {[%clk 0:00:14]}  Rxd2+ {[%clk 0:00:28]} 36. Ke5 {[%clk 0:00:15]}  Re2+ {[%clk 0:00:29]} 0-1


[Site "https://www.chess.com"]